bitfinex/quotes_ETHUSD_20260129
["timestamp","ask_amount","ask_price","bid_price","bid_amount"]
[1769706572885,1.85305883,2838.8,2837.4,0.74242004]
[1769706573086,1.85305883,2838.8,2837.4,2.23321076]
[1769706573478,0.88052972,2839.2,2837.7,0.10570266]
[1769706573695,0.88052972,2839.2,2837.7,1.59649338]
[1769706575114,1.58142694,2839.1,2837.5,6.34]
[1769706575885,1.58142694,2838.9,2837.5,6.34]
[1769706576089,1.58142694,2839.3,2837.8,1.59649338]
[1769706576695,1.58142694,2839.3,2838.0,0.10570266]
[1769706577097,0.88052972,2839.2,2838.0,0.10570266]
[1769706577299,1.58142694,2839.7,2838.1,1.49079072]
[1769706577493,1.58142694,2839.7,2838.0,1.24511456]
[1769706577723,1.58142694,2839.7,2838.0,0.25851347]
[1769706577883,1.58142694,2839.7,2837.9,0.002]
[1769706578085,1.58142694,2839.7,2838.1,1.49079072]
[1769706578523,1.58142694,2839.7,2838.4,0.10570266]
[1769706579319,0.88040569,2839.6,2838.6,0.10570266]
[1769706580119,2.46183263,2839.6,2838.6,0.10570266]
[1769706580421,2.46183263,2839.6,2838.3,0.10570266]
[1769706581421,1.58142694,2839.5,2838.3,0.10570266]
[1769706581920,1.58142694,2839.5,2838.7,0.10570266]
[1769706582618,1.58142694,2839.5,2838.9,0.10570266]
[1769706582925,1.58142694,2839.5,2838.7,0.10570266]
[1769706583333,0.88049871,2839.3,2838.5,0.10570266]
[1769706583986,1.58142694,2839.2,2838.7,0.10570266]
[1769706584941,1.58142694,2839.2,2838.5,0.10570266]
[1769706585092,1.58142694,2839.2,2838.7,0.10570266]
[1769706585594,2.46198768,2839.1,2838.7,0.10570266]
[1769706585809,3.718,2839.0,2838.7,0.10570266]
[1769706586001,1.58142694,2839.0,2838.2,0.10570266]
[1769706586207,1.58142694,2838.8,2838.0,0.10570266]
[1769706586423,1.58142694,2838.6,2837.8,0.10570266]
[1769706586718,1.58142694,2838.6,2838.0,0.10570266]
[1769706586890,1.58142694,2838.6,2837.8,0.10570266]
[1769706586891,5.29942694,2838.6,2837.8,0.10570266]
[1769706587492,6.18019193,2838.5,2837.9,0.10770266]
[1769706589021,5.29942694,2838.3,2837.9,0.002]
[1769706589198,3.718,2838.3,2838.0,0.10570266]
[1769706589412,1.58142694,2838.6,2838.0,0.10570266]
[1769706589710,0.88074687,2838.5,2838.0,0.10570266]
[1769706590287,0.02,3113.8,2838.0,0.10570266]
[1769706590288,3.718,2838.4,2838.0,0.10570266]
[1769706590497,5.29942694,2838.3,2837.6,0.002]
[1769706590692,5.29942694,2838.3,2837.7,0.10570266]
[1769706590693,5.82936963,2838.3,2837.7,0.10570266]
[1769706591716,6.71018269,2838.3,2837.7,0.10570266]
[1769706594501,6.18024,2838.3,2837.7,0.10570266]
[1769706594823,6.18024,2838.3,2837.9,0.10570266]
[1769706597031,4.09759347,2838.2,2837.6,0.002]
[1769706597203,4.09759347,2838.2,2837.1,0.10570266]
[1769706597918,4.09759347,2838.2,2837.3,0.10570266]
[1769706598324,4.09759347,2838.1,2836.9,0.10570266]
[1769706598531,7.81559347,2837.5,2836.8,0.002]
[1769706599105,4.97868179,2837.4,2836.8,0.002]
[1769706599546,3.718,2837.1,2836.2,0.10570266]
[1769706599705,7.81559347,2836.7,2835.9,0.002]
[1769706599905,7.81559347,2836.7,2836.0,0.10570266]
[1769706600222,3.718,2836.7,2836.4,0.10570266]
[1769706600429,3.718,2836.9,2836.4,0.10570266]
[1769706600941,4.09759347,2837.0,2836.2,0.10570266]
[1769706601146,0.88124361,2836.9,2836.2,0.10570266]
[1769706601641,0.88124361,2836.9,2836.6,0.002]
[1769706601848,4.09759347,2836.7,2835.9,0.002]
[1769706602057,4.09759347,2836.7,2835.6,0.002]
[1769706602213,1.73162476,2836.9,2835.8,0.10570266]
[1769706602542,3.52497444,2837.0,2836.2,0.10570266]
[1769706602543,0.88123085,2837.0,2836.2,0.10570266]
[1769706602727,4.09759347,2837.4,2836.4,0.10570266]
[1769706602943,4.09759347,2837.4,2835.8,0.10570266]
[1769706603122,4.09759347,2837.2,2835.8,0.10570266]
[1769706603851,3.52435328,2837.5,2836.4,0.10570266]
[1769706604050,4.09759347,2837.4,2836.4,0.42712436]
[1769706604360,4.09759347,2837.4,2836.2,0.10570266]
[1769706604531,0.001,2838.1,2837.3,0.10570266]
[1769706604849,0.001,2838.1,2837.5,0.10570266]
[1769706605050,1.94003402,2838.8,2837.8,0.10570266]
[1769706605222,2.83854813,2838.8,2837.5,0.10570266]
[1769706606364,1.94003402,2838.8,2837.5,4.16554096]
[1769706606678,4.97825758,2838.8,2837.2,0.738]
[1769706606842,4.09759347,2838.2,2836.4,0.88138163]
[1769706607041,4.09759347,2838.2,2836.4,0.88139447]
[1769706607260,4.09759347,2838.0,2836.3,4.0598383]
[1769706607469,7.81559347,2837.9,2836.3,4.0598383]
[1769706607672,0.78155935,2837.8,2836.4,0.4165541]
[1769706608583,0.78155935,2837.8,2836.4,0.52225676]
[1769706609356,0.88099517,2837.7,2836.4,0.52225676]
[1769706610274,0.88098659,2837.8,2836.8,0.10570266]
[1769706610466,0.88098659,2837.8,2836.8,0.53282702]
[1769706611560,3.52338629,2838.2,2837.2,0.10570266]
[1769706611759,0.88074687,2838.5,2837.2,0.10570266]
[1769706612285,0.88074687,2838.5,2837.4,0.10570266]
[1769706613286,0.88074687,2838.5,2837.4,4.16554096]
[1769706613455,0.88062277,2838.9,2837.5,0.4165541]
[1769706614387,0.001,2838.3,2837.5,0.4165541]
[1769706617613,0.001,2838.3,2837.0,5.78473488]
[1769706617776,0.001,2838.3,2837.6,0.10570266]
[1769706617975,0.001,2838.3,2837.8,0.10570266]
[1769706618174,0.8804677,2839.4,2838.1,4.16554096]
[1769706618513,1.32080155,2839.4,2838.5,0.10570266]
[1769706618811,1.32080155,2839.4,2838.3,0.10570266]
[1769706619270,3.718,2839.3,2838.3,0.10570266]
[1769706619582,3.718,2839.3,2838.2,0.4165541]
[1769706620185,0.88052972,2839.2,2838.2,0.4165541]
[1769706620416,0.88052972,2839.2,2838.3,0.45820951]
[1769706623597,1.32080685,2839.4,2838.4,4.16554096]
[1769706623773,0.88144198,2839.5,2838.4,4.16554096]
[1769706623973,0.88143987,2839.5,2838.6,4.16554096]
[1769706624400,0.001,2839.5,2838.6,4.16554096]
[1769706624603,0.001,2839.5,2838.8,0.10570266]
[1769706624802,0.1024,2840.8,2839.2,0.10570266]
[1769706624803,4.97765824,2840.8,2839.2,0.10570266]
[1769706624992,0.88005702,2840.8,2839.6,0.10570266]
[1769706625188,0.88005702,2840.8,2839.5,4.0598383]
[1769706625581,1.18686938,2840.9,2839.6,0.10570266]
[1769706626101,0.88002386,2840.9,2839.6,5.22705012]
[1769706626298,0.87998101,2841.0,2839.8,5.22705012]
[1769706626522,7.23732686,2841.5,2839.8,5.22705012]
[1769706626807,12.20982528,2841.5,2839.8,5.22705012]
[1769706626986,4.97249842,2841.4,2839.8,5.12134746]
[1769706627197,4.97249842,2841.0,2839.0,5.22705012]
[1769706627508,4.97249842,2841.0,2838.3,0.45820951]
[1769706627509,4.97249842,2840.2,2838.3,0.45820951]
[1769706627818,4.97249842,2840.1,2838.3,5.57955697]
[1769706627990,4.97249842,2840.1,2838.4,5.22705012]
[1769706628312,4.97249842,2840.5,2838.5,5.12134746]
[1769706628622,4.97249842,2840.1,2838.3,1.33900187]
[1769706628779,0.8802197,2840.2,2838.4,5.22705012]
[1769706629808,4.97249842,2840.0,2838.3,0.45820951]
[1769706630311,4.97249842,2840.0,2838.3,5.57955697]
[1769706630496,0.88031268,2839.9,2838.3,5.57955697]
[1769706630697,0.74622985,2839.8,2838.4,5.76738673]
[1769706630888,5.71872827,2839.8,2838.4,0.64603927]
[1769706631089,5.71872827,2839.8,2838.0,5.12134746]
[1769706631910,3.6269534,2840.2,2838.0,5.12134746]
[1769706631911,3.51976347,2841.2,2840.2,0.10570266]
[1769706632211,0.87963125,2842.1,2841.0,0.10570266]
[1769706632509,0.738,2842.1,2841.5,0.10570266]
[1769706632805,7.23597739,2842.6,2841.5,0.10365277]
[1769706633010,0.18313531,2843.4,2841.7,0.10570266]
[1769706633308,10.4990191,2843.5,2842.0,0.10570266]
[1769706633512,0.738,2843.3,2842.0,0.10570266]
[1769706634006,3.718,2843.2,2841.6,5.29370038]
[1769706634310,3.718,2842.8,2841.3,0.87987735]
[1769706634485,0.87944559,2842.7,2841.2,0.87990989]
[1769706634981,4.59743169,2842.8,2841.2,0.98561255]
[1769706635179,4.59740491,2842.9,2841.3,0.97990704]
[1769706635384,3.718,2842.8,2841.3,6.27360742]
[1769706635604,4.455,2842.8,2841.3,6.27360742]
[1769706635799,0.737,2842.8,2841.3,6.27360742]
[1769706636007,0.87940491,2842.9,2841.3,6.27360742]
[1769706636310,0.737,2842.8,2841.3,0.97990704]
[1769706636612,0.87944559,2842.7,2841.1,0.87992538]
[1769706636786,0.87944559,2842.7,2841.0,0.87995037]
[1769706637490,0.87944559,2842.7,2841.0,0.98565303]
[1769706637813,0.87944559,2842.7,2841.1,6.27363361]
[1769706638315,0.001,2842.6,2841.1,6.27363361]
[1769706639010,0.001,2842.6,2840.6,5.29370038]
[1769706639011,9.30810419,2842.2,2840.6,5.29370038]
[1769706639210,9.30810419,2842.2,2840.6,6.17377761]
[1769706639382,0.737,2842.1,2840.8,5.29370038]
[1769706640820,0.8796622,2842.0,2840.8,5.29370038]
[1769706640986,0.737,2841.9,2840.8,5.29370038]
[1769706641186,0.737,2841.9,2840.8,5.83364068]
[1769706641382,0.737,2841.9,2840.3,5.29370038]
[1769706641610,0.8796622,2842.0,2840.6,5.29370038]
[1769706642015,0.737,2841.9,2840.6,5.29370038]
[1769706642688,0.87972411,2841.8,2840.6,5.29370038]
[1769706642915,0.737,2841.7,2840.6,5.29370038]
[1769706643119,0.87950747,2842.5,2840.9,5.29370038]
[1769706643414,0.737,2842.4,2841.1,5.29370038]
[1769706644096,0.737,2842.3,2841.1,5.29370038]
[1769706644302,0.737,2842.3,2841.3,5.29370038]
[1769706644508,0.737,2842.2,2841.3,5.29370038]
[1769706644802,0.87955845,2842.4,2841.3,5.29370038]
[1769706645022,0.737,2842.3,2841.3,5.29370038]
[1769706645794,3.718,2842.2,2841.3,5.29370038]
[1769706645995,3.718,2842.0,2841.3,5.29370038]
[1769706646197,3.718,2842.0,2840.6,4.25393837]
[1769706646198,3.718,2842.0,2840.7,5.29370038]
[1769706646524,3.718,2841.8,2840.7,5.29370038]
[1769706646816,5.33476975,2841.7,2840.9,5.29370038]
[1769706648112,3.718,2841.6,2840.9,5.29370038]
[1769706648294,4.455,2841.5,2840.9,5.29370038]
[1769706648492,3.718,2841.5,2840.9,5.29370038]
[1769706648699,0.737,2841.4,2841.0,5.29370038]
[1769706648925,0.737,2841.3,2841.0,5.29370038]
[1769706649506,3.718,2841.7,2841.0,5.29370038]
[1769706649702,3.718,2841.5,2841.3,0.002]
[1769706650108,0.737,2841.4,2841.3,0.002]
[1769706650427,0.737,2841.4,2841.0,5.29570038]
[1769706650816,3.718,2841.5,2841.0,5.29570038]
[1769706651022,0.737,2841.4,2841.0,5.29570038]
[1769706652403,3.718,2841.5,2841.0,5.29570038]
[1769706652603,0.737,2841.4,2841.0,5.29570038]
[1769706653131,3.718,2841.3,2841.0,5.29570038]
[1769706653331,3.718,2841.3,2840.0,4.62685721]
[1769706653826,3.718,2841.3,2840.2,4.29797812]
[1769706654127,0.87985026,2841.4,2840.2,4.29797812]
[1769706654128,3.718,2841.1,2840.2,4.29797812]
[1769706655803,0.737,2841.0,2840.2,4.29797812]
[1769706656101,0.737,2841.0,2840.3,1.57864642]
[1769706656302,0.737,2840.9,2840.3,1.06082381]
[1769706656724,3.718,2841.1,2840.3,1.06082381]
[1769706656910,1.88900512,2842.1,2840.9,0.10570266]
[1769706657303,1.88900512,2842.1,2840.7,0.10570266]
[1769706657532,1.15200512,2842.0,2840.2,0.9859185]
[1769706657746,2.03169828,2841.9,2840.4,0.88015772]
[1769706658609,1.15200512,2841.8,2840.4,0.88015772]
[1769706659106,2.03252001,2842.5,2841.0,0.10570266]
[1769706659306,0.001,2842.5,2841.0,0.10570266]
[1769706659534,0.738,2842.5,2841.2,0.10570266]
[1769706660040,0.738,2842.5,2841.3,0.87987892]
[1769706660240,0.738,2842.5,2841.4,0.45050973]
[1769706660945,0.001,2842.5,2841.4,0.45050973]
[1769706661113,0.737,2842.4,2841.4,0.45050973]
[1769706661312,0.738,2842.5,2841.4,0.45050973]
[1769706661512,2.76951397,2842.5,2841.4,0.45050973]
[1769706661710,1.15200512,2842.4,2841.4,0.45050973]
[1769706662015,1.15200512,2842.4,2841.2,0.002]
[1769706662016,1.15200512,2842.0,2841.2,0.002]
[1769706662809,4.87000512,2842.0,2841.2,0.002]
[1769706663503,0.737,2841.9,2841.2,0.002]
[1769706666042,4.87000512,2842.0,2841.2,0.002]
[1769706666247,0.737,2841.9,2841.2,0.002]
[1769706666745,1.15200512,2841.8,2841.2,0.002]
[1769706666943,1.15200512,2841.6,2841.0,0.002]
[1769706667165,0.737,2841.9,2841.0,0.002]
[1769706667166,3.718,2841.9,2841.0,0.002]
[1769706667320,0.737,2841.8,2841.0,0.002]
[1769706668014,1.61673602,2841.8,2841.0,0.002]
[1769706668255,1.15200512,2841.7,2841.0,0.002]
[1769706668757,1.15200512,2841.6,2840.4,0.88014946]
[1769706669057,0.737,2841.5,2840.4,0.88014946]
[1769706670823,0.737,2841.4,2840.4,0.88014946]
[1769706671045,1.88900512,2841.6,2840.5,0.48515894]
[1769706671360,0.737,2841.6,2840.5,0.48515894]
[1769706671856,1.15200512,2841.7,2840.5,0.48515894]
[1769706672057,3.718,2841.8,2840.5,0.48515894]
[1769706672058,0.737,2841.6,2840.5,0.48515894]
[1769706672256,0.737,2841.6,2840.6,0.88009575]
[1769706672466,0.737,2841.6,2840.7,0.48856377]
[1769706672619,1.15200512,2842.1,2840.7,0.48856377]
[1769706672821,0.001,2842.3,2840.7,0.48856377]
[1769706673072,0.001,2842.3,2841.0,0.10570266]
[1769706673363,0.001,2842.3,2841.2,0.10570266]
[1769706674140,0.001,2842.3,2841.3,0.87987892]
[1769706674351,0.001,2842.3,2841.4,0.45050973]
[1769706676138,0.001,2841.7,2841.4,0.45050973]
[1769706676482,0.001,2841.7,2841.5,0.87981699]
[1769706676835,0.001,2842.3,2841.5,0.87981699]
[1769706678084,5.74939471,2842.9,2841.5,0.87981699]
[1769706678240,5.74939471,2842.9,2841.6,0.48495947]
[1769706678241,0.737,2842.7,2841.6,0.48495947]
[1769706678670,5.74939471,2842.9,2841.7,0.87975507]
[1769706678671,1.15200512,2842.9,2841.7,0.87975507]
[1769706678865,1.61634392,2843.1,2841.7,0.87975507]
[1769706679269,2.76834904,2843.1,2841.7,0.87975507]
[1769706679474,2.03133101,2843.1,2841.8,0.49894375]
[1769706679777,1.15200512,2843.0,2841.8,0.49894375]
[1769706680886,0.87932589,2843.1,2841.8,0.49894375]
[1769706680887,1.15200512,2843.4,2841.9,0.87969316]
[1769706681057,1.88900512,2843.2,2841.9,0.87969316]
[1769706681262,1.15200512,2843.1,2842.0,0.50031122]
[1769706682360,1.88900512,2843.4,2842.0,0.50031122]
[1769706682586,1.88900512,2843.4,2842.0,0.60601388]
[1769706682797,1.15200512,2843.4,2842.0,0.60601388]
[1769706682956,1.15200512,2843.8,2842.2,0.10570266]
[1769706683158,1.15200512,2844.1,2842.4,0.10570266]
[1769706683598,1.15200512,2844.1,2842.6,0.10570266]
[1769706683956,1.15200512,2843.8,2842.1,0.87963125]
[1769706684156,1.15200512,2843.8,2842.2,0.54633631]
[1769706684388,1.15200512,2843.8,2842.2,0.65203897]
[1769706684800,0.737,2844.2,2842.2,0.54633631]
[1769706684801,1.15200512,2843.5,2842.2,0.54633631]
[1769706684959,1.15200512,2843.0,2841.6,0.59066213]
[1769706685154,1.15200512,2842.8,2841.2,0.87988786]
[1769706685359,1.0,2842.5,2840.9,0.87998487]
[1769706685806,1.0,2842.3,2840.9,0.87998487]
[1769706686576,1.0,2842.3,2841.0,0.87996815]
[1769706686777,1.0,2842.3,2840.9,0.8799897]
[1769706687110,1.0,2842.3,2840.7,0.002]
[1769706687111,1.0,2842.1,2841.0,0.45058214]
[1769706687266,1.0,2842.1,2840.7,0.88205285]
[1769706687466,1.0,2842.1,2840.7,0.002]
[1769706687690,1.0,2842.1,2841.0,0.87995047]
[1769706688007,1.0,2842.0,2840.8,0.88001083]
[1769706688170,1.0,2841.9,2840.9,0.44022436]
[1769706688370,1.0,2841.9,2840.7,0.002]
[1769706689219,1.0,2841.7,2840.7,0.002]
[1769706689765,1.0,2841.7,2841.0,0.002]
[1769706691423,0.999,2842.2,2841.0,0.002]
[1769706691598,0.737,2842.1,2841.0,0.002]
[1769706692336,0.999,2842.0,2841.0,0.002]
[1769706693338,0.999,2842.4,2841.2,0.87990989]
[1769706693493,0.999,2842.4,2841.3,0.55622787]
[1769706693693,1.8785399,2842.4,2841.3,0.55622787]
[1769706694001,1.8785399,2842.4,2841.3,0.45052521]
[1769706694197,0.737,2842.7,2841.3,0.45052521]
[1769706694411,0.999,2842.6,2841.3,0.45052521]
[1769706695326,0.999,2842.6,2841.4,0.87984796]
[1769706695526,0.999,2842.6,2841.5,0.4849765]
[1769706696725,1.87847768,2842.6,2841.5,0.4849765]
[1769706696925,0.999,2842.5,2841.5,0.4849765]
[1769706697433,0.999,2842.5,2841.3,0.87985648]
[1769706697795,0.999,2842.5,2841.0,3.52186107]
[1769706698406,0.87951163,2842.5,2841.0,3.52186107]
[1769706698606,0.999,2842.4,2841.0,3.62756373]
[1769706698806,0.999,2842.4,2841.1,0.45075356]
[1769706699940,0.999,2842.2,2841.1,0.45075356]
[1769706700253,0.999,2842.0,2841.0,0.002]
[1769706700407,0.999,2842.0,2841.1,0.87993779]
[1769706700833,3.718,2841.9,2841.1,0.87993779]
[1769706701240,3.718,2841.9,2841.0,0.88195079]
[1769706701544,0.999,2841.8,2841.0,0.88195079]
[1769706701705,0.999,2841.8,2841.2,0.002]
[1769706702641,3.51927745,2842.4,2841.2,0.002]
[1769706702642,0.738,2842.4,2841.2,0.002]
[1769706702943,3.718,2842.3,2841.2,0.002]
[1769706703343,4.717,2842.3,2841.2,0.002]
[1769706703903,0.999,2842.2,2841.2,0.88190989]
[1769706704141,3.718,2842.2,2841.3,0.45072521]
[1769706704442,0.999,2842.1,2841.3,0.45072521]
[1769706707373,0.999,2842.0,2841.2,0.002]
[1769706707546,0.999,2841.8,2841.2,0.002]
[1769706708148,3.718,2842.1,2841.2,0.002]
[1769706709069,3.718,2842.2,2841.2,0.002]
[1769706710442,4.717,2842.3,2841.2,0.002]
[1769706712773,0.001,2842.4,2841.5,0.10570266]
[1769706714262,0.999,2843.1,2841.8,0.10570266]
[1769706714467,0.999,2842.8,2841.4,0.10570266]
[1769706714661,0.999,2842.7,2841.4,0.10570266]
[1769706716080,0.999,2842.7,2841.6,0.10570266]
[1769706716660,0.999,2842.7,2841.7,0.87975507]
[1769706716869,0.999,2842.7,2841.8,0.4504478]
[1769706718967,0.999,2842.7,2841.9,0.87969316]
[1769706720679,0.999,2842.9,2841.9,0.98539582]
[1769706723381,0.999,2842.9,2841.9,0.87969316]
[1769706723583,0.999,2842.8,2842.0,0.48489316]
[1769706723950,0.999,2842.4,2841.8,0.4504478]
[1769706724264,0.999,2842.4,2841.7,0.87973845]
[1769706724981,0.999,2842.4,2841.3,0.87987892]
[1769706726391,0.001,2842.2,2841.3,0.87987892]
[1769706726557,0.001,2842.2,2841.4,0.10570266]
[1769706726990,0.001,2842.2,2841.5,0.87981699]
[1769706727187,0.001,2842.2,2841.6,0.45047876]
[1769706729165,0.001,2842.2,2841.7,0.87975507]
[1769706732315,0.82917368,2842.4,2841.7,0.87975507]
[1769706732591,0.97022268,2842.7,2841.8,0.10570266]
[1769706733486,0.97022268,2842.9,2841.8,0.10570266]
[1769706733967,0.97022268,2842.9,2841.9,0.87969316]
[1769706734167,0.97022268,2842.9,2842.0,0.45041685]
[1769706734565,0.97022268,2843.2,2842.0,0.55611951]
[1769706734766,0.97022268,2843.3,2842.2,0.27752898]
[1769706735567,0.56712992,2843.6,2842.6,0.10570266]
[1769706735830,0.87884517,2844.7,2842.8,0.10570266]
[1769706736115,0.97022268,2844.5,2843.2,0.10570266]
[1769706736276,0.97022268,2844.5,2843.4,0.10570266]
[1769706736879,0.97022268,2844.4,2843.2,0.10570266]
[1769706737995,0.97022268,2844.4,2843.3,0.87926001]
[1769706738213,0.97022268,2844.3,2843.4,0.45020027]
[1769706738524,0.97022268,2844.3,2843.0,0.10570266]
[1769706738525,0.97022268,2844.1,2843.0,0.87933585]
[1769706738691,0.97022268,2844.1,2842.9,0.8793675]
[1769706739085,0.97022268,2844.0,2842.6,0.10570266]
[1769706739297,4.68822268,2843.5,2842.2,0.87958803]
[1769706739487,4.68822268,2843.5,2842.4,0.87953296]
[1769706739488,0.97022268,2843.4,2842.4,0.87953296]
[1769706739686,0.97022268,2843.4,2841.9,0.002]
[1769706739687,0.97022268,2843.4,2842.3,0.87954965]
[1769706739930,0.97022268,2843.4,2842.4,0.87953096]
[1769706740107,0.97022268,2843.4,2842.1,0.87963125]
[1769706740424,0.97022268,2843.4,2842.2,0.45039595]
[1769706741385,0.97022268,2843.4,2842.2,0.55609861]
[1769706741681,0.97022268,2843.7,2842.6,0.10570266]
[1769706741881,0.97022268,2844.3,2842.8,0.10570266]
[1769706742210,0.97022268,2844.3,2843.0,0.10570266]
[1769706742400,0.97022268,2844.2,2843.0,0.10570266]
[1769706744222,0.97022268,2843.8,2842.6,0.8794513]
[1769706744423,0.97022268,2843.8,2842.5,0.87948582]
[1769706744594,0.97022268,2843.8,2842.7,0.87944302]
[1769706744789,0.97022268,2843.8,2842.7,1.31918991]
[1769706745797,0.971997,2843.6,2842.7,1.31918991]
[1769706746324,4.689997,2843.9,2842.7,1.42489257]
[1769706746528,0.971997,2843.9,2842.9,0.10570266]
[1769706747336,0.971997,2843.9,2842.7,1.42489257]
[1769706747337,0.971997,2843.8,2842.7,1.42489257]
[1769706747631,0.971997,2843.8,2842.8,0.49427641]
[1769706748416,0.971997,2843.8,2842.9,0.87938372]
[1769706749862,0.971997,2843.6,2842.8,0.49427641]
[1769706750146,0.87911563,2843.8,2842.5,0.87948776]
[1769706750147,0.971997,2843.4,2842.5,0.87948776]
[1769706750739,0.971997,2843.1,2842.2,0.10770266]
[1769706751030,0.971997,2843.1,2842.4,0.87953576]
[1769706751621,0.971997,2843.5,2842.4,0.87953576]
[1769706751835,0.971997,2843.5,2842.5,0.10570266]
[1769706752431,0.971997,2843.5,2842.8,0.87941466]
[1769706752637,0.971997,2843.5,2842.9,0.4502776]
[1769706752803,0.971997,2843.5,2842.6,0.87945305]
[1769706753126,0.971997,2843.5,2842.6,0.87945396]
[1769706753127,0.94765936,2843.4,2842.6,0.87945396]
[1769706753736,0.94765936,2843.4,2842.1,3.51843798]
[1769706753900,1.82678392,2843.8,2842.7,0.87943652]
[1769706754105,0.94765936,2843.8,2842.8,0.10570266]
[1769706754802,0.94765936,2843.8,2842.9,0.87938372]
[1769706755010,0.94765936,2843.7,2843.0,0.45026213]
[1769706755335,0.94765936,2843.9,2842.9,0.82845946]
[1769706757429,0.94765936,2843.9,2842.7,0.87944559]
[1769706758130,0.94765936,2843.8,2842.7,0.87944559]
[1769706761036,0.94765936,2844.2,2843.0,0.10570266]
[1769706761837,0.94765936,2844.2,2843.1,0.87932186]
[1769706762039,0.94765936,2844.2,2843.2,0.4502312]
[1769706762741,0.94765936,2844.1,2843.2,0.4502312]
[1769706762929,0.87899672,2844.2,2843.0,0.87934675]
[1769706762930,4.66565936,2843.8,2843.0,0.87934675]
[1769706763517,0.94765936,2843.7,2843.0,0.87934675]
[1769706763719,0.94765936,2843.7,2842.6,3.51788095]
[1769706765139,4.66565936,2843.7,2842.5,0.87950747]
[1769706765344,0.94765936,2843.6,2842.5,0.87950747]
[1769706765547,0.94765936,2843.6,2842.6,0.450324]
[1769706765736,0.94765936,2843.6,2842.7,0.87944559]
[1769706766823,3.718,2843.8,2842.7,0.87944559]
[1769706767454,3.718,2843.7,2842.7,0.87944559]
[1769706768847,0.94765936,2843.7,2842.7,0.87944559]
[1769706769145,0.94765936,2843.7,2842.8,0.4847552]
[1769706769353,3.718,2843.8,2842.8,0.59045786]
[1769706769934,0.001,2844.0,2842.9,0.87938372]
[1769706769935,0.94865936,2844.0,2842.9,0.87938372]
[1769706770152,0.001,2844.0,2843.0,1.04749588]
[1769706770635,0.001,2844.0,2843.0,0.10570266]
[1769706770876,0.94865936,2844.0,2842.9,0.87938372]
[1769706771060,0.94865936,2844.0,2843.0,0.49873765]
[1769706771357,0.94765936,2843.9,2843.0,0.49873765]
[1769706771559,0.94765936,2843.8,2843.0,0.49873765]
[1769706771948,0.94765936,2843.8,2843.1,0.87932186]
[1769706771949,3.718,2843.8,2843.1,0.87932186]
[1769706772337,0.94765936,2843.9,2843.1,0.87932186]
[1769706772543,4.66565936,2843.8,2843.2,0.4895347]
[1769706772856,0.87906761,2844.0,2842.9,0.87935917]
[1769706772857,4.66565936,2843.7,2842.9,0.87935917]
[1769706773166,0.94765936,2843.6,2842.9,0.87935917]
[1769706773383,0.94765936,2843.6,2842.8,0.87940056]
[1769706773567,4.66565936,2843.6,2842.5,3.51795103]
[1769706773728,3.718,2843.6,2842.9,0.87936198]
[1769706774047,3.718,2843.6,2842.9,3.51744307]
[1769706774356,0.94765936,2843.9,2842.9,3.51744307]
[1769706774770,4.66565936,2843.9,2842.9,3.51744307]
[1769706775440,0.93360391,2843.8,2842.9,3.51744307]
[1769706775649,0.93360391,2843.8,2843.0,0.44168268]
[1769706776356,0.93360391,2843.8,2843.1,0.87932186]
[1769706776957,0.93360391,2843.8,2843.0,3.95903802]
[1769706776958,0.93360391,2843.7,2843.0,1.32101479]
[1769706777664,0.93360391,2843.5,2843.0,0.44168268]
[1769706777865,0.93360391,2843.5,2843.0,0.002]
[1769706779479,0.93360391,2843.2,2842.5,0.87949246]
[1769706779653,0.93360391,2843.2,2842.4,0.87951636]
[1769706779855,0.93360391,2843.2,2842.5,0.87950723]
[1769706780550,4.65160391,2842.9,2842.2,0.002]
[1769706780750,0.87921862,2843.5,2842.2,0.002]
[1769706780751,3.718,2843.1,2842.2,0.002]
[1769706780974,4.454,2843.1,2842.2,0.002]
[1769706781180,4.65160391,2842.9,2842.2,0.35405981]
[1769706781362,4.65160391,2842.9,2842.2,0.002]
[1769706782153,0.93360391,2842.8,2842.2,0.002]
[1769706783569,0.93360391,2842.7,2842.2,0.002]
[1769706784860,4.65160391,2842.4,2841.9,0.002]
[1769706785183,5.53116792,2842.4,2841.9,0.002]
[1769706785386,5.53116792,2842.4,2841.6,0.002]
[1769706785387,4.65160391,2842.2,2841.6,0.002]
[1769706785551,4.63960391,2842.8,2841.6,0.002]
[1769706785748,0.736,2843.4,2842.4,0.10570266]
[1769706785992,1.66960391,2843.4,2842.4,0.10570266]
[1769706786191,0.93360391,2843.3,2842.4,0.10570266]
[1769706786697,3.706,2843.0,2842.1,0.10570266]
[1769706787406,3.706,2843.0,2842.2,0.8796003]
[1769706787607,3.706,2843.0,2842.3,0.45037042]
[1769706787784,3.706,2843.0,2842.4,0.002]
[1769706789570,3.706,2843.0,2842.4,0.88153841]
[1769706790278,0.93360391,2843.1,2842.4,0.88153841]
[1769706790474,0.736,2843.0,2842.4,0.88153841]
[1769706790675,0.736,2843.0,2842.5,0.49558725]
[1769706791505,0.93360391,2843.4,2842.6,0.87947653]
[1769706791680,0.737,2843.3,2842.6,0.87947653]
[1769706792083,0.93360391,2844.0,2842.8,0.10570266]
[1769706792304,0.93360391,2843.8,2842.8,0.10570266]
[1769706792609,0.737,2843.7,2842.6,0.87947653]
[1769706792911,3.706,2843.6,2842.6,0.87947653]
[1769706793119,0.93360391,2843.8,2842.6,0.87947653]
[1769706793294,0.737,2843.7,2842.7,1.041552]
[1769706793495,0.737,2843.7,2842.9,0.87938372]
[1769706794921,0.737,2843.6,2842.9,0.87938372]
[1769706796057,1.67060391,2843.6,2842.9,0.87938372]
[1769706796847,0.93360391,2843.5,2842.8,1.07149516]
[1769706797052,0.93360391,2843.5,2842.8,0.87939231]
[1769706797412,0.736,2843.4,2842.8,0.87939231]
[1769706799314,0.737,2843.4,2842.6,0.87947653]
[1769706799516,0.736,2843.3,2842.6,0.87947653]
[1769706800340,0.736,2843.3,2842.5,0.87948782]
[1769706800542,0.736,2843.3,2842.6,0.43996345]
[1769706800935,0.736,2843.2,2842.6,0.54566611]
[1769706801242,0.736,2843.2,2842.6,0.43996345]
[1769706801427,0.736,2843.2,2842.7,0.87944559]